bitfinex/quotes_SOLUSD_20250112
["timestamp","ask_amount","ask_price","bid_price","bid_amount"]
[1736641349024,81.4,188.0,187.94,8.82043785]
[1736641349631,81.4,188.0,187.93,8.82043785]
[1736641350419,8.031,188.02,187.95,8.82043785]
[1736641352333,8.031,188.02,187.93,8.82043785]
[1736641353327,8.031,188.02,187.94,8.82043785]
[1736641354631,8.031,188.02,187.93,8.82043785]
[1736641354836,23.776884,188.01,187.92,8.82043785]
[1736641355137,23.776884,188.01,187.9,8.82043785]
[1736641355319,105.176884,188.01,187.9,8.82043785]
[1736641355509,81.4,188.0,187.89,20.0]
[1736641355710,81.4,187.99,187.9,8.82043785]
[1736641356008,105.176884,187.98,187.89,8.82043785]
[1736641356220,81.4,187.96,187.87,8.82043785]
[1736641358430,81.4,187.96,187.86,8.82043785]
[1736641359336,81.4,187.96,187.87,8.82043785]
[1736641360555,81.4,187.96,187.86,8.82043785]
[1736641361852,25.439884,187.95,187.85,8.82043785]
[1736641362140,23.776884,187.93,187.84,8.82043785]
[1736641362442,23.776884,187.93,187.82,1.641]
[1736641362443,23.776884,187.93,187.82,8.82043785]
[1736641362644,23.776884,187.93,187.83,8.82043785]
[1736641366145,23.776884,187.93,187.82,28.82043785]
[1736641367750,23.776884,187.93,187.83,8.82043785]
[1736641368410,23.776884,187.93,187.82,20.0]
[1736641368614,23.776884,187.93,187.86,8.82043785]
[1736641369863,23.776884,187.93,187.85,8.82043785]
[1736641370278,81.4,187.92,187.85,8.82043785]
[1736641372870,81.4,187.92,187.84,8.82043785]
[1736641373076,81.4,187.92,187.83,8.82043785]
[1736641373742,23.776884,187.91,187.78,0.79840469]
[1736641373938,25.439884,187.89,187.77,1.6186]
[1736641374165,23.776884,187.87,187.77,8.82043785]
[1736641374368,23.776884,187.87,187.75,13.3154]
[1736641374369,23.776884,187.85,187.76,8.82043785]
[1736641375681,23.776884,187.85,187.77,8.82043785]
[1736641376679,23.776884,187.85,187.76,8.82043785]
[1736641378649,23.776884,187.85,187.77,8.82043785]
[1736641379385,81.4,187.84,187.77,8.82043785]
[1736641380385,81.4,187.84,187.76,8.82043785]
[1736641380571,23.776884,187.83,187.74,8.28257469]
[1736641380884,23.776884,187.83,187.75,8.82043785]
[1736641382087,23.776884,187.83,187.74,17.10301254]
[1736641382270,1.6258,187.82,187.74,8.28257469]
[1736641382470,1.6258,187.82,187.74,17.10301254]
[1736641383897,1.6258,187.82,187.74,8.28257469]
[1736641384115,23.776884,187.81,187.74,8.28257469]
[1736641385110,23.776884,187.79,187.74,8.28257469]
[1736641385283,23.776884,187.77,187.74,8.28257469]
[1736641386609,49.969384,187.75,187.74,6.61597469]
[1736641387103,23.776884,187.74,187.72,16.56514938]
[1736641388295,23.776884,187.73,187.72,16.56514938]
[1736641390395,34.969384,187.73,187.72,5.87224938]
[1736641390607,29.969384,187.73,187.72,5.87224938]
[1736641391290,29.969384,187.73,187.71,33.13029876]
[1736641391291,23.776884,187.69,187.6,8.82043785]
[1736641391582,23.776884,187.69,187.56,15.70749294]
[1736641391795,6.1925,187.73,187.63,8.82043785]
[1736641392409,6.1925,187.73,187.61,6.4638]
[1736641392585,6.1925,187.73,187.64,8.82043785]
[1736641392791,6.1925,187.73,187.63,8.82043785]
[1736641393289,23.776884,187.72,187.63,8.82043785]
[1736641394579,23.776884,187.72,187.61,8.82043785]
[1736641396477,23.776884,187.72,187.62,8.82043785]
[1736641396882,23.776884,187.7,187.59,20.0]
[1736641397084,23.776884,187.7,187.59,8.82043785]
[1736641397389,20.0,187.67,187.58,8.82043785]
[1736641397993,23.776884,187.66,187.58,8.82043785]
[1736641398198,23.776884,187.66,187.57,8.82043785]
[1736641399287,81.9,187.71,187.59,8.82043785]
[1736641399497,20.0,187.68,187.61,8.82043785]
[1736641399881,20.0,187.68,187.6,8.82043785]
[1736641400087,20.0,187.68,187.59,8.82043785]
[1736641400323,81.9,187.67,187.59,8.82043785]
[1736641401028,81.9,187.67,187.62,8.82043785]
[1736641401194,81.9,187.67,187.63,8.82043785]
[1736641403613,81.9,187.72,187.65,8.82043785]
[1736641403817,81.9,187.72,187.67,8.82043785]
[1736641404205,81.9,187.72,187.63,1.5421]
[1736641404206,81.9,187.72,187.66,8.82043785]
[1736641404828,20.86856099,187.79,187.74,20.0]
[1736641404829,16.28856099,187.79,187.74,20.0]
[1736641404986,6.3266,187.89,187.78,8.82043785]
[1736641405190,6.3266,187.89,187.75,0.79859638]
[1736641405514,6.3266,187.89,187.77,8.82043785]
[1736641405716,23.776884,187.88,187.77,8.82043785]
[1736641406532,6.3266,187.89,187.77,8.82043785]
[1736641407140,23.776884,187.88,187.77,8.82043785]
[1736641407332,23.776884,187.88,187.77,13.80177498]
[1736641408547,20.0,187.85,187.73,37.57865898]
[1736641408743,23.776884,187.84,187.73,33.80177498]
[1736641409968,23.776884,187.84,187.72,15.34387498]
[1736641410140,23.776884,187.82,187.72,15.34387498]
[1736641410750,81.9,187.83,187.74,13.80177498]
[1736641410925,81.9,187.83,187.76,13.80177498]
[1736641411350,81.9,187.83,187.75,13.80177498]
[1736641412218,81.9,187.83,187.76,13.80177498]
[1736641414053,81.9,187.83,187.77,13.80177498]
[1736641414258,6.3266,187.89,187.82,13.80177498]
[1736641414559,6.3266,187.89,187.83,13.80177498]
[1736641414726,6.3266,187.89,187.82,13.80177498]
[1736641416141,6.3266,187.89,187.81,13.80177498]
[1736641416450,6.3266,187.89,187.76,19.6632]
[1736641416451,23.776884,187.88,187.78,13.80177498]
[1736641418260,23.776884,187.88,187.79,13.80177498]
[1736641419549,23.776884,187.88,187.75,0.79869079]
[1736641419550,23.776884,187.88,187.78,13.80177498]
[1736641421152,81.9,187.87,187.78,13.80177498]
[1736641421731,81.9,187.87,187.79,13.80177498]
[1736641422571,81.9,187.87,187.78,13.80177498]
[1736641426275,81.9,187.87,187.83,13.80177498]
[1736641428071,81.9,187.87,187.82,13.80177498]
[1736641430271,81.9,187.87,187.81,13.80177498]
[1736641432341,81.9,187.87,187.78,14.11141147]
[1736641432342,81.9,187.87,187.8,13.80177498]
[1736641435385,81.9,187.87,187.81,13.80177498]
[1736641439302,81.9,187.87,187.8,13.80177498]
[1736641440898,81.9,187.87,187.79,13.80177498]
[1736641441391,81.9,187.87,187.8,8.83117599]
[1736641441765,81.9,187.87,187.81,8.83117599]
[1736641441968,81.9,187.87,187.84,8.83117599]
[1736641442391,81.9,187.87,187.85,8.83117599]
[1736641442779,81.9,187.92,187.85,8.83117599]
[1736641443102,88.3662,187.98,187.88,8.83117599]
[1736641443265,88.3662,187.98,187.9,8.83117599]
[1736641444302,88.3662,187.98,187.84,0.79818887]
[1736641444303,88.3662,187.98,187.89,8.83117599]
[1736641444505,23.776884,187.95,187.83,13.3096]
[1736641444695,23.776884,187.95,187.85,8.83117599]
[1736641444898,23.776884,187.95,187.86,8.83117599]
[1736641445312,23.776884,187.95,187.86,13.7894921]
[1736641447096,23.776884,187.93,187.81,1.5998]
[1736641447292,20.0,187.9,187.81,1.5998]
[1736641447491,20.0,187.9,187.79,13.7894921]
[1736641447803,23.776884,187.89,187.79,13.7894921]
[1736641448115,81.9,187.89,187.78,13.7894921]
[1736641451113,81.9,187.88,187.78,13.7894921]
[1736641452096,81.9,187.88,187.77,13.314]
[1736641452097,81.9,187.86,187.76,15.3892921]
[1736641452831,105.676884,187.85,187.76,13.7894921]
[1736641453029,105.676884,187.85,187.74,13.7894921]
[1736641453198,6.4662,187.84,187.74,13.7894921]
[1736641453400,6.4662,187.84,187.75,13.7894921]
[1736641454737,6.4662,187.84,187.76,13.7894921]
[1736641454902,6.4662,187.84,187.75,13.7894921]
[1736641455526,5.7473,187.84,187.75,13.7894921]
[1736641456829,5.7473,187.84,187.73,13.3169]
[1736641457047,5.7473,187.84,187.74,13.7894921]
[1736641458710,5.7473,187.84,187.75,13.7894921]
[1736641459517,81.9,187.82,187.73,13.7894921]
[1736641459722,81.9,187.82,187.72,13.7894921]
[1736641461419,23.776884,187.81,187.72,13.7894921]
[1736641461622,81.9,187.82,187.74,13.7894921]
[1736641462617,81.9,187.82,187.76,13.7894921]
[1736641462813,81.9,187.82,187.77,13.7894921]
[1736641463139,81.9,187.82,187.76,13.7894921]
[1736641466430,81.9,187.82,187.75,13.7894921]
[1736641466735,81.9,187.82,187.74,13.7894921]
[1736641470832,81.9,187.82,187.73,13.7894921]
[1736641472132,81.9,187.81,187.73,13.7894921]
[1736641472331,81.9,187.81,187.75,13.7894921]
[1736641472923,81.9,187.81,187.74,13.7894921]
[1736641473326,81.9,187.81,187.74,8.83632068]
[1736641474035,81.9,187.81,187.73,8.83632068]
[1736641476739,81.9,187.79,187.71,8.83632068]
[1736641476948,81.9,187.78,187.68,22.15652068]
[1736641477124,81.9,187.78,187.68,8.83632068]
[1736641479943,81.9,187.76,187.68,8.83632068]
[1736641481133,81.9,187.76,187.67,8.83632068]
[1736641483936,81.9,187.75,187.66,8.83632068]
[1736641484547,81.9,187.75,187.68,8.83632068]
[1736641485942,81.9,187.75,187.65,14.9806]
[1736641486258,81.9,187.75,187.68,8.83632068]
[1736641486748,81.9,187.75,187.7,8.83632068]
[1736641487656,81.9,187.75,187.65,15.77968691]
[1736641487850,81.9,187.75,187.7,8.83632068]
[1736641488234,81.9,187.75,187.72,8.83632068]
[1736641488436,81.9,187.79,187.74,8.83632068]
[1736641489133,81.9,187.79,187.75,8.83632068]
[1736641489746,81.9,187.79,187.76,8.83632068]
[1736641491065,81.9,187.79,187.75,8.83632068]
[1736641491266,81.9,187.79,187.73,8.83632068]
[1736641491762,81.9,187.79,187.72,8.83632068]
[1736641498074,81.9,187.79,187.69,41.55794192]
[1736641498245,81.9,187.79,187.7,8.83632068]
[1736641500243,81.9,187.77,187.65,14.9805]
[1736641500457,81.9,187.77,187.65,23.81682068]
[1736641500751,81.9,187.76,187.66,8.83632068]
[1736641500968,81.9,187.76,187.67,8.83632068]
[1736641501151,81.9,187.76,187.72,8.83632068]
[1736641501947,81.9,187.79,187.72,8.83632068]
[1736641502971,81.9,187.79,187.68,13.3199]
[1736641502972,81.9,187.79,187.74,8.83632068]
[1736641503883,81.9,187.79,187.72,8.83632068]
[1736641504665,81.9,187.77,187.65,14.9806]
[1736641504867,81.9,187.77,187.67,8.83632068]
[1736641505190,81.9,187.77,187.68,8.83632068]
[1736641505886,81.9,187.76,187.69,8.83632068]
[1736641507190,81.9,187.76,187.65,15.7797135]
[1736641507492,81.9,187.76,187.67,8.83632068]
[1736641508392,81.9,187.75,187.65,1.6583]
[1736641508586,81.9,187.74,187.64,8.83632068]
[1736641508785,88.0547,187.74,187.64,8.83632068]
[1736641510268,88.0547,187.74,187.65,8.83632068]
[1736641510773,88.0547,187.74,187.67,8.83632068]
[1736641511078,88.0547,187.74,187.68,8.83632068]
[1736641511274,81.9,187.78,187.71,8.83632068]
[1736641511481,81.9,187.78,187.72,8.83632068]
[1736641512492,6.1547,187.8,187.73,8.83632068]
[1736641512899,6.1547,187.8,187.75,8.83632068]
[1736641513072,6.1547,187.8,187.74,8.83632068]
[1736641513277,6.1547,187.8,187.74,13.80715229]
[1736641514805,20.0,187.82,187.74,13.80715229]
[1736641515100,20.0,187.82,187.75,13.80715229]
[1736641515803,28.89935692,187.88,187.81,13.80715229]
[1736641515986,16.40113809,187.89,187.85,13.80715229]
[1736641515987,8.20056904,187.89,187.85,13.80715229]
[1736641516681,6.065,187.93,187.85,13.80715229]
[1736641517479,6.065,187.93,187.87,13.80715229]
[1736641517676,6.065,187.93,187.86,13.80715229]
[1736641518771,6.065,187.93,187.82,13.80715229]
[1736641519182,23.776884,187.92,187.8,13.80715229]
[1736641519389,20.0,187.89,187.8,13.80715229]
[1736641519610,20.0,187.89,187.79,13.80715229]
[1736641520512,23.776884,187.88,187.77,13.80715229]
[1736641521188,81.9,187.87,187.77,13.80715229]
[1736641521883,105.676884,187.86,187.77,13.80715229]
[1736641522213,105.676884,187.86,187.75,13.80715229]
[1736641522399,105.676884,187.86,187.74,13.80715229]
[1736641522400,6.0432,187.85,187.74,13.80715229]
[1736641522586,6.0432,187.85,187.75,13.80715229]
[1736641522988,6.0432,187.85,187.76,13.80715229]
[1736641524317,6.0432,187.85,187.77,13.80715229]
[1736641524515,81.9,187.86,187.8,13.80715229]
[1736641524819,4.64,187.88,187.81,13.80715229]
[1736641525322,4.64,187.88,187.82,13.80715229]
[1736641527320,4.64,187.88,187.81,13.80715229]
[1736641527525,81.9,187.87,187.8,13.80715229]
[1736641528334,81.9,187.87,187.81,13.80715229]
[1736641528708,81.9,187.87,187.82,13.80715229]
[1736641529216,81.9,187.93,187.86,13.80715229]
[1736641529708,81.9,187.93,187.85,13.80715229]
[1736641532796,81.9,187.93,187.86,13.80715229]
[1736641533028,6.0432,187.95,187.89,13.80715229]
[1736641533199,6.0432,188.0,187.9,13.80715229]
[1736641533515,6.0432,188.0,187.84,0.79822283]
[1736641533516,6.0432,188.0,187.91,13.80715229]
[1736641536945,20.0,187.98,187.91,15.34615229]
[1736641537151,81.9,188.02,187.92,13.80715229]
[1736641538062,81.9,188.02,187.93,13.80715229]
[1736641538238,81.9,188.02,187.92,13.80715229]
[1736641538737,81.9,188.02,187.93,13.80715229]
[1736641539256,81.9,188.02,187.92,13.80715229]
[1736641539762,23.776884,188.01,187.91,1.539]
[1736641540666,23.776884,187.99,187.91,1.539]
[1736641541154,81.9,187.98,187.91,1.539]
[1736641544871,81.9,187.98,187.89,13.80715229]
[1736641547182,81.9,187.97,187.89,13.80715229]
[1736641548178,81.9,187.97,187.88,13.80715229]
[1736641548373,81.9,187.96,187.87,1.5403]
[1736641548752,81.9,187.96,187.85,13.80715229]
[1736641549882,81.9,187.92,187.83,1.5403]
[1736641550180,81.9,187.92,187.86,13.80715229]
[1736641551269,81.9,187.92,187.85,13.80715229]
[1736641552488,81.9,187.92,187.83,15.34745229]
[1736641552671,81.9,187.92,187.83,1.5403]
[1736641553097,81.9,187.91,187.83,1.5403]
[1736641553274,81.9,187.9,187.81,13.80715229]
[1736641553485,81.9,187.9,187.8,13.80715229]
[1736641553783,81.9,187.9,187.81,13.80715229]
[1736641555188,81.9,187.9,187.8,13.80715229]
[1736641555368,81.9,187.89,187.79,13.80715229]
[1736641555567,23.776884,187.88,187.78,15.34745229]
[1736641556997,23.776884,187.88,187.78,1.5403]
[1736641557379,81.9,187.87,187.76,13.80715229]
[1736641557580,23.776884,187.86,187.75,13.80715229]
[1736641560105,23.776884,187.86,187.77,13.80715229]
[1736641560404,81.9,187.87,187.8,13.80715229]
[1736641560714,81.9,187.87,187.79,13.80715229]
[1736641560870,81.9,187.86,187.78,13.80715229]
[1736641561469,81.9,187.86,187.77,13.80715229]
[1736641562300,81.9,187.86,187.74,15.31785229]
[1736641562301,23.776884,187.85,187.74,15.31785229]
[1736641562475,26.438484,187.85,187.73,13.80715229]
[1736641562796,23.776884,187.83,187.72,13.80715229]
[1736641562988,23.776884,187.83,187.73,13.80715229]
[1736641564186,81.9,187.82,187.75,13.80715229]
[1736641564371,81.9,187.82,187.76,13.80715229]
[1736641565070,81.9,187.82,187.74,13.80715229]
[1736641565486,81.9,187.82,187.75,13.80715229]
[1736641565798,81.9,187.82,187.71,13.3178]
[1736641565799,81.9,187.82,187.74,13.80715229]
[1736641565999,81.9,187.82,187.75,13.80715229]
[1736641566173,81.9,187.82,187.71,13.3178]
[1736641566174,81.9,187.82,187.74,13.80715229]
[1736641567275,81.9,187.82,187.74,8.83646915]
[1736641567870,81.9,187.81,187.74,8.83646915]
[1736641568798,81.9,187.81,187.75,8.83646915]
[1736641569001,81.9,187.81,187.74,8.83646915]
[1736641573280,81.9,187.81,187.73,8.83646915]
[1736641575081,81.9,187.81,187.71,13.3178]
[1736641575292,81.9,187.81,187.73,8.83646915]
[1736641575909,81.9,187.81,187.72,8.83646915]
[1736641576105,81.9,187.81,187.71,22.15426915]
[1736641576408,81.9,187.77,187.68,8.83646915]
[1736641577578,81.9,187.77,187.69,8.83646915]
[1736641578705,81.9,187.77,187.71,8.83646915]
[1736641579003,81.9,187.77,187.73,8.83646915]
[1736641579193,81.9,187.82,187.75,8.83646915]
[1736641580283,81.9,187.81,187.74,8.83646915]
[1736641582011,81.9,187.8,187.73,8.83646915]
[1736641585510,81.9,187.79,187.72,8.83646915]
[1736641585810,81.9,187.79,187.7,8.83646915]
[1736641586407,81.9,187.79,187.72,8.83646915]
[1736641586596,81.9,187.79,187.73,8.83646915]
[1736641587401,81.9,187.79,187.72,8.83646915]
[1736641588015,81.9,187.79,187.71,8.83646915]
[1736641588319,81.9,187.79,187.69,28.83646915]
[1736641588490,81.9,187.79,187.71,8.83646915]
[1736641589703,81.9,187.79,187.72,8.83646915]
[1736641591916,81.9,187.78,187.72,8.83646915]
[1736641592101,81.9,187.78,187.71,8.83646915]
[1736641594918,81.9,187.78,187.73,8.83646915]
[1736641598797,81.9,187.78,187.72,8.83646915]
[1736641599001,81.9,187.78,187.67,13.3209]
[1736641599218,81.9,187.78,187.71,8.83646915]
[1736641602436,81.9,187.78,187.67,13.3209]
[1736641602437,81.9,187.78,187.7,8.83646915]
[1736641603047,81.9,187.78,187.68,8.83646915]
[1736641603550,81.9,187.78,187.69,8.83646915]
[1736641604048,81.9,187.77,187.69,8.83646915]
[1736641604633,81.9,187.77,187.68,8.83646915]
[1736641606927,81.9,187.77,187.67,22.15736915]
[1736641607120,88.4916,187.77,187.67,22.15736915]
[1736641607325,88.4916,187.77,187.66,10.35106915]
[1736641607523,88.4916,187.77,187.66,1.5146]
[1736641607524,81.9,187.76,187.66,1.5146]
[1736641607910,81.9,187.75,187.65,8.83646915]
[1736641608134,81.9,187.74,187.64,8.83646915]
[1736641610132,81.9,187.74,187.63,8.83646915]
[1736641612333,23.776884,187.73,187.63,8.83646915]
[1736641613052,81.9,187.71,187.62,10.39116915]
[1736641613554,6.5916,187.69,187.58,13.3273]
[1736641613733,6.5916,187.69,187.59,8.83646915]
[1736641613922,81.9,187.7,187.63,8.83646915]
[1736641614123,6.5916,187.74,187.68,8.83646915]
[1736641614327,14.50046904,187.78,187.7,8.83646915]
[1736641614940,14.50046904,187.78,187.69,8.83646915]
[1736641615142,6.2999,187.78,187.69,8.83646915]
[1736641617539,6.2999,187.78,187.7,8.83646915]
[1736641617863,6.2999,187.78,187.71,8.83646915]
[1736641620362,6.2999,187.78,187.69,8.83646915]
[1736641623362,6.2999,187.78,187.68,8.83646915]
[1736641624163,6.2999,187.78,187.65,15.65545735]
[1736641624419,23.776884,187.77,187.65,1.534]
[1736641624560,81.9,187.73,187.62,22.16096915]
[1736641625059,81.9,187.73,187.63,8.83646915]
[1736641625565,81.9,187.73,187.64,8.83646915]
[1736641625862,81.9,187.73,187.65,8.83646915]
[1736641626067,81.9,187.73,187.67,8.83646915]
[1736641626261,81.9,187.73,187.68,8.83646915]
[1736641626466,6.2999,187.78,187.69,8.83646915]
[1736641626775,6.2999,187.78,187.72,8.83646915]
[1736641626952,96.43636904,187.83,187.74,8.83646915]
[1736641627272,14.53636904,187.83,187.76,8.83646915]
[1736641627865,6.3358,187.83,187.76,8.83646915]
[1736641628249,6.3358,187.83,187.72,13.3173]
[1736641628445,6.3358,187.83,187.74,8.83646915]
[1736641629268,6.3358,187.83,187.72,13.3173]
[1736641629476,6.3358,187.83,187.74,13.80607556]
[1736641631288,6.3358,187.83,187.72,13.80607556]
[1736641631448,20.0,187.79,187.7,13.80607556]
[1736641638188,20.0,187.79,187.71,13.80607556]
[1736641640096,20.0,187.79,187.69,13.3196]
[1736641640317,20.0,187.79,187.7,13.80607556]
[1736641640812,20.0,187.79,187.69,13.80607556]
[1736641641176,20.0,187.79,187.7,13.80607556]
[1736641642504,81.9,187.82,187.73,13.80607556]
[1736641642707,81.9,187.81,187.75,13.80607556]
[1736641642996,81.9,187.81,187.76,13.80607556]
[1736641646186,81.9,187.81,187.75,13.80607556]
[1736641648808,81.9,187.81,187.75,12.80607556]
[1736641649307,81.9,187.81,187.75,8.83497766]
[1736641650287,81.9,187.81,187.73,8.83497766]
[1736641651604,81.9,187.81,187.7,13.3189]
[1736641651808,81.9,187.81,187.7,8.83497766]
[1736641652109,81.9,187.81,187.69,8.83497766]
[1736641652793,81.9,187.81,187.7,8.83497766]
[1736641654503,23.776884,187.8,187.7,8.83497766]
[1736641654694,81.9,187.79,187.7,8.83497766]
[1736641656517,81.9,187.79,187.69,8.83497766]
[1736641657916,81.9,187.79,187.67,14.8952]
[1736641658096,81.9,187.79,187.68,8.83497766]
[1736641658291,23.776884,187.78,187.67,23.73017766]
[1736641658822,23.776884,187.78,187.67,22.15597766]
[1736641659906,23.776884,187.78,187.68,8.83497766]
[1736641661915,23.776884,187.78,187.67,8.83497766]
[1736641662107,6.4767,187.77,187.67,8.83497766]
[1736641663891,6.4767,187.77,187.66,8.83497766]
[1736641665115,23.776884,187.76,187.66,8.83497766]
[1736641665305,23.776884,187.76,187.63,0.79907478]
[1736641665306,81.9,187.73,187.63,8.83497766]
[1736641665730,81.9,187.72,187.64,8.83497766]
[1736641667313,81.9,187.72,187.63,8.83497766]
[1736641668231,81.9,187.72,187.64,8.83497766]
[1736641669209,81.9,187.72,187.62,1.6078]
[1736641669210,81.9,187.72,187.61,13.3252]
[1736641669638,6.4767,187.71,187.62,8.83497766]
[1736641670135,6.4767,187.71,187.63,8.83497766]
[1736641670340,6.4767,187.71,187.65,8.83497766]
[1736641671059,81.9,187.72,187.66,8.83497766]
[1736641671226,81.9,187.72,187.67,8.83497766]
[1736641672459,81.9,187.72,187.66,8.83497766]
[1736641672631,81.9,187.72,187.65,8.83497766]
[1736641674925,81.9,187.72,187.61,14.12443581]
[1736641675136,81.9,187.72,187.65,8.83497766]
[1736641677361,81.9,187.72,187.66,8.83497766]
[1736641677648,81.9,187.72,187.67,8.83497766]
[1736641677853,81.9,187.72,187.68,8.83497766]
[1736641679847,81.9,187.72,187.67,8.83497766]
[1736641680235,81.9,187.72,187.66,8.83497766]
[1736641681656,81.9,187.72,187.65,8.83497766]
[1736641681867,81.9,187.72,187.62,8.83497766]
[1736641683156,81.9,187.72,187.63,8.83497766]
[1736641683363,81.9,187.72,187.64,8.83497766]
[1736641683557,81.9,187.72,187.65,8.83497766]
[1736641683754,81.9,187.72,187.66,8.83497766]
[1736641684060,81.9,187.75,187.67,8.83497766]
[1736641685661,81.9,187.75,187.68,8.83497766]
[1736641685835,81.9,187.75,187.69,8.83497766]
[1736641686656,81.9,187.78,187.71,8.83497766]
[1736641686834,81.9,187.78,187.66,1.5751]
[1736641686835,81.9,187.78,187.73,8.83497766]
[1736641687358,6.1765,187.81,187.73,8.83497766]
[1736641687664,6.1765,187.81,187.74,8.83497766]
[1736641688129,6.1765,187.81,187.75,8.83497766]
[1736641688334,81.9,187.84,187.75,8.83497766]
[1736641689764,81.9,187.84,187.74,8.83497766]
[1736641692573,81.9,187.84,187.75,8.83497766]
[1736641692971,81.9,187.84,187.7,14.11724324]
[1736641692972,81.9,187.84,187.74,8.83497766]
[1736641694939,81.9,187.84,187.7,14.11724324]
[1736641695160,6.1765,187.85,187.73,8.83497766]
[1736641695161,81.9,187.83,187.73,8.83497766]
[1736641698789,23.776884,187.82,187.7,22.15337766]
[1736641698990,23.776884,187.82,187.67,13.321]
[1736641699142,23.776884,187.82,187.66,1.5751]
[1736641699143,87.9098,187.78,187.66,1.5751]
[1736641699458,87.9098,187.78,187.67,8.83497766]
[1736641700784,81.9,187.77,187.67,8.83497766]
[1736641701699,81.9,187.77,187.68,8.83497766]
[1736641701983,81.9,187.77,187.69,8.83497766]
[1736641703469,81.9,187.77,187.72,8.83497766]
[1736641703792,81.9,187.81,187.75,8.83497766]
[1736641705193,81.9,187.81,187.74,8.83497766]
[1736641705794,81.9,187.81,187.75,8.83497766]
[1736641706097,81.9,187.81,187.76,8.83497766]
[1736641707326,81.9,187.81,187.77,8.83497766]
[1736641710225,81.9,187.81,187.76,8.83497766]
[1736641710846,81.9,187.81,187.73,14.11525111]
[1736641710847,8.8831,187.88,187.77,8.83497766]
[1736641711032,6.2219,187.88,187.81,8.83497766]
[1736641711193,81.9,187.89,187.82,8.83497766]
[1736641712616,81.9,187.89,187.81,8.83497766]
[1736641712807,81.9,187.89,187.8,28.83497766]
[1736641713495,81.9,187.89,187.77,13.3135]
[1736641713826,81.9,187.89,187.8,8.83497766]
[1736641714332,81.9,187.89,187.77,13.3135]
[1736641714510,81.9,187.89,187.77,22.14847766]
[1736641715126,81.9,187.89,187.78,8.83497766]
[1736641717357,81.9,187.84,187.74,10.33957766]
[1736641717725,81.9,187.84,187.76,8.83497766]
[1736641717927,81.9,187.84,187.77,8.83497766]
[1736641718261,81.9,187.84,187.78,8.83497766]
[1736641718553,81.9,187.84,187.77,8.83497766]
[1736641721260,81.9,187.84,187.75,8.83497766]
[1736641722660,81.9,187.84,187.74,28.83497766]
[1736641723261,81.9,187.84,187.75,8.83497766]
[1736641725453,81.9,187.84,187.74,28.83497766]
[1736641725647,81.9,187.84,187.73,8.83497766]
[1736641726855,81.9,187.83,187.73,8.83497766]
[1736641727149,81.9,187.82,187.74,8.83497766]
[1736641727648,81.9,187.82,187.73,8.83497766]
[1736641730727,81.9,187.82,187.74,8.83497766]
[1736641731238,81.9,187.82,187.75,8.83497766]
[1736641731434,81.9,187.82,187.71,14.11692137]
[1736641731638,81.9,187.82,187.74,8.83497766]
[1736641731938,81.9,187.82,187.76,8.83497766]
[1736641732337,81.9,187.82,187.73,14.11521856]
[1736641732338,81.9,187.82,187.77,8.83497766]
[1736641733064,81.9,187.82,187.76,8.83497766]
[1736641738039,81.9,187.82,187.77,8.83497766]
[1736641738240,81.9,187.82,187.79,8.83497766]
[1736641738440,81.9,187.86,187.8,8.83497766]
[1736641738749,81.9,187.86,187.76,1.513]
[1736641738750,81.9,187.86,187.81,8.83497766]
[1736641739052,81.9,187.86,187.8,8.83497766]
[1736641740272,81.9,187.86,187.79,8.83497766]
[1736641740466,81.9,187.86,187.77,20.0]
[1736641740680,81.9,187.85,187.73,22.15157766]
[1736641740886,81.9,187.84,187.73,22.15157766]